{"text_format":"1","workbook":"xlsx","n_sheets":8,"sheets":["Menue","Expo","ExpoHilfe","AddMitt","Budget","LAE","LAE Hilfe","Ultraschall"],"not_rendered":{"charts":1,"images":34,"macros":1,"external_links":0,"defined_names":5,"comments":0,"pivot_tables":0},"unopened":[],"bounds":{"document_bytes":16777216,"sheet_cells":100000,"rows_first":2000,"rows_last":500,"rows_between":2000,"halvings":0,"cell_chars":16384,"cell_head_chars":4096},"cells_cut":0,"cells_raw":0,"read":"whole","date_system":"1900"}

{"sheet":"Menue","index":0,"n_rows":6,"n_cols":3,"rows_kept":6,"cut":false,"hidden":false,"merged":[]}
[]
[]
[]
[]
[]
[null,null,"Version: Februar 2016"]

{"sheet":"Expo","index":1,"n_rows":31,"n_cols":18,"rows_kept":31,"cut":false,"hidden":false,"merged":[]}
[null,null,null,null,null,null,null,null,null,null,null,null,null,null,null,100]
[null,null,null,null,null,null,null,null,null,null,{"$f":"C8/$P$1*L2","v":0},{"$f":"IF(D8<>\"\",POWER(10,D8/10),0)","v":0}]
[null,null,null,null,null,null,null,null,null,null,0,{"$f":"IF(D9<>\"\",POWER(10,D9/10),0)","v":0},null,8,"Stunden"]
[null,null,null,null,null,null,null,null,null,null,0,{"$f":"IF(D10<>\"\",POWER(10,D10/10),0)","v":0},null,480,"Minuten"]
[null,null,null,null,null,null,null,null,null,null,0,0,null,40,"Stunden"]
[null,null,null,null,null,null,null,null,null,null,0,0,null,2400,"Minuten"]
[null,"Tätigkeit",{"$f":"IF(P1<100,\"Stunden\",IF(P1>100,\"Minuten\",\"Zeitanteil in %\"))","v":"Zeitanteil in %"},"Pegel",null,null,null,null,null,null,0,0,null,100,"%"]
[null,null,null,null,null,null,null,null,null,null,0,0]
[null,null,null,null,null,null,null,null,null,null,0,0]
[null,null,null,null,null,"Bezugszeitraum (bitte wählen):",null,null,null,null,0,0]
[null,null,null,null,null,null,null,null,null,null,0,0]
[null,null,null,null,null,null,null,"Arbeitsschicht",null,null,0,0]
[null,null,null,null,null,null,null,null,null,null,0,0]
[null,null,null,null,null,null,null,"Arbeitswoche",null,null,0,0]
[null,null,null,null,null,null,null,null,null,null,0,0]
[null,null,null,null,null,null,null,"relativ",null,null,0,0]
[null,null,null,null,null,null,null,null,null,null,0,0]
[null,null,null,null,null,null,null,null,null,null,0,0]
[null,null,null,null,null,null,null,null,null,null,0,0]
[null,null,null,null,null,null,null,null,null,null,0,0]
[null,null,null,null,null,null,null,null,null,null,0,0]
[null,null,null,null,null,null,null,null,null,null,0,0]
[]
[]
[]
[null,null,null,null,null,null,null,null,null,null,{"$f":"10*LOG10(SUM(K2:K23))","v":{"$error":"#NUM!"}}]
[]
[]
[]
[null,null,{"$f":"IF(P1<100,\"Summe Stunden\",IF(P1>100,\"Summe Minuten\",\"Zeitanteil in %\"))","v":"Zeitanteil in %"},{"$f":"IF(OR(P1=40,P1=2400),\"LEX,40h\",\"LEX,8h\")","v":"LEX,8h"}]
[null,null,{"$f":"SUM(C8:C28)","v":0},{"$f":"IF(ISERROR(K26),\" \",K26)","v":" "},null,null,null,null,null,null,null,null,null,null,null,null,null,"."]

{"sheet":"ExpoHilfe","index":2,"n_rows":22,"n_cols":2,"rows_kept":22,"cut":false,"hidden":false,"merged":[]}
[null,"IFA-Lärmexpositionsrechner"]
[]
[null,"Mit diesem Rechner kann die Lärmexposition, die sich aus unterschiedlichen Belastungen während eines Beurteilungszeitraums ergibt, ermittelt werden."]
[null,"Der Beurteilungszeitraum umfasst in der Regel eine repräsentative Arbeitsschicht, in besonderen Fällen eine Arbeitswoche. Dementsprechend wird die gesamte Lärmexposition auf die Bezugszeit von 8 h  bzw. 40 h bezogen."]
[null,"Die Berechnung erfolgt mit der Gleichung:"]
[]
[]
[]
[]
[]
[null,"LpAeq,Tm = äquivalenter Dauerschallpegel für die Teilzeit m"]
[null,"Tm = Teilzeit (in h, min oder %)"]
[null,"T0 = Bezugszeit (8 h, 480 min, 40 h, 2400 min oder 100%)"]
[null,"M = Gesamtzahl der Teilzeiten"]
[]
[null,"Bedienungshinweise"]
[]
[null,"Der Bezugszeitraum ist wählbar (Arbeitsschicht bzw. Arbeitswoche). Die Angaben der Teilzeiten für die einzelnen Tätigkeiten müssen dann entsprechend in Stunden, Minuten oder Prozent erfolgen."]
[null,"Die aufsummierten Teilzeiten werden unter der Eingabemaske angezeigt. "]
[null,"Die Angabe einer Tätigkeit in der Tabelle ist optional, sie kann als Information für Ihre Ablage von Interesse sein."]
[null,"Mit der Schaltfläche Drucken erscheint die Druckansicht auf dem Bildschirm. Die Weiterverarbeitung erfolgt aus dieser Ansicht. "]
[null,"Mit der Schaltfläche Zurücksetzen werden alle Eingabefelder geleert."]

{"sheet":"AddMitt","index":3,"n_rows":31,"n_cols":20,"rows_kept":31,"cut":false,"hidden":false,"merged":[]}
[]
[null,null,"Pegel","Pegel",null,null,null,null,null,null,null,null,null,{"$f":"IF(C3<>\"\",POWER(10,C3/10),0)","v":0},{"$f":"IF(D3<>\"\",POWER(10,D3/10),0)","v":0}]
[null,null,null,null,null,null,null,null,null,null,null,null,null,0,0]
[null,null,null,null,null,null,null,null,null,null,null,null,null,0,0]
[null,null,null,null,null,null,null,null,null,null,null,null,null,0,0]
[null,null,null,null,null,null,null,null,null,null,null,null,null,0,0]
[null,null,null,null,null,null,null,null,null,null,null,null,null,0,0]
[null,null,null,null,null,null,null,null,null,null,null,null,null,0,0]
[null,null,null,null,null,null,null,null,null,null,null,null,null,0,0]
[null,null,null,null,null,null,null,null,null,null,null,null,null,0,0]
[null,null,null,null,null,null,null,null,null,null,null,null,null,0,0]
[null,null,null,null,null,null,null,null,null,null,null,null,null,0,0]
[null,null,null,null,null,"Pegelwerte können in beide Spalten",null,null,null,null,null,null,null,0,0]
[null,null,null,null,null,"beliebig eingegeben werden.",null,null,null,null,null,null,null,0,0]
[null,null,null,null,null,null,null,null,null,null,null,null,null,0,0]
[null,null,null,null,null,null,null,null,null,null,null,null,null,0,0]
[null,null,null,null,null,null,null,null,null,null,null,null,null,0,0]
[null,null,null,null,null,null,null,null,null,null,null,null,null,0,0]
[null,null,null,null,null,null,null,null,null,null,null,null,null,0,0]
[null,null,null,null,null,null,null,null,null,null,null,null,null,0,0]
[null,null,null,null,null,null,null,null,null,null,null,null,null,0,0]
[null,null,null,null,null,null,null,null,null,null,null,null,null,0,0]
["n =",{"$f":"COUNT(C3:D23)","v":0},null,null,null,null,null,null,null,null,null,null,null,0,0]
[]
[null,"Mittelungspegel  ",{"$f":"IF(ISERROR(M26),\" \",M26)","v":" "}]
[null,null,null,null,null,null,null,null,null,null,null,null,{"$f":"10*LOG10(SUM(N2:O23)/COUNT(C3:D23))","v":{"$error":"#DIV/0!"}},{"$f":"10*LOG10(SUM(N2:O23))","v":{"$error":"#NUM!"}}]
[null,"Summenpegel  ",{"$f":"IF(ISERROR(N26),\" \",N26)","v":" "}]
[]
[null,"zur Info:"]
[null,"Arithm. Mittel  ",{"$f":"IF(ISERROR(M26),\" \",AVERAGE(C3:D23))","v":" "}]
[null,"Standardabw.  ",{"$f":"IF(COUNT(C3:D23)<3,\" \",STDEV(C3:D23))","v":" "},null,null,null,null,null,null,null,null,null,null,null,null,null,null,null,null,"."]

{"sheet":"Budget","index":4,"n_rows":29,"n_cols":18,"rows_kept":29,"cut":false,"hidden":false,"merged":[]}
[]
[]
[]
[]
[]
[]
[]
[]
[null,"Bei einem Mittelungspegel von",null,"dB(A)","Wertebereich: 80 - 110 dB(A)"]
[null,"wird der Auslösewert"]
[null," LEX,8h =",85,"dB(A) nach",{"$f":"IF(ISBLANK(C9),\"\",POWER(10,C11/10)*480/POWER(10,C9/10))","v":""},"min"]
[null," LEX,8h =",80,"dB(A) nach",{"$f":"IF(ISBLANK(C9),\"\",POWER(10,C12/10)*480/POWER(10,C9/10))","v":""},"min","erreicht!"]
[]
[]
[]
[]
[]
[]
[]
[]
[]
[]
[]
[]
[]
[]
[]
[]
[null,null,null,null,null,null,null,null,null,null,null,null,null,null,null,null,null,"."]

{"sheet":"LAE","index":5,"n_rows":50,"n_cols":27,"rows_kept":50,"cut":false,"hidden":false,"merged":[]}
[]
[null,null,null,null,null,null,null,null,null,null,null,null,null,null,null,null,null,null,"Zwischenrechnung"]
[]
[]
[]
[]
[null,"Ereignis (Lärmquelle)","N","LAE","LAeq","std","min","sec","LAE","N*LAE"]
[null,null,null,null,null,null,null,null,{"$f":"IF(D8<>\"\",D8,IF(AND(E8<>0,SUM(F8:H8)>0),E8+10*LOG10(F8*3600+G8*60+H8),\"\"))","v":""},{"$f":"IF(AND(I8<>\"\",C8<>\"\"),I8+10*LOG10(C8),I8)","v":""},null,null,null,null,null,null,null,{"$f":"IF(J8<>\"\",POWER(10,0.1*J8),\"\")","v":""}]
[null,null,null,null,null,null,null,null,{"$f":"IF(D9<>\"\",D9,IF(AND(E9<>0,SUM(F9:H9)>0),E9+10*LOG10(F9*3600+G9*60+H9),\"\"))","v":""},"",null,null,"Zeitraum",8,"Stunden",null,null,{"$f":"IF(J9<>\"\",POWER(10,0.1*J9),\"\")","v":""}]
[null,null,null,null,null,null,null,null,"","",null,null,null,null,null,null,null,""]
[null,null,null,null,null,null,null,null,"","",null,null,"Hintergrundgeräuschpegel",null,"dB(A)",null,null,""]
[null,null,null,null,null,null,null,null,"","",null,null,null,null,null,null,null,""]
[null,null,null,null,null,null,null,null,"","",null,null,null,null,null,null,null,""]
[null,null,null,null,null,null,null,null,"","",null,null,null,null,null,null,null,""]
[null,null,null,null,null,null,null,null,"","",null,null,null,null,null,null,null,""]
[null,null,null,null,null,null,null,null,"","",null,null,null,null,null,null,null,""]
[null,null,null,null,null,null,null,null,"","",null,null,null,null,null,null,null,""]
[null,null,null,null,null,null,null,null,"","",null,null,null,null,null,null,null,""]
[null,null,null,null,null,null,null,null,"","",null,null,null,null,null,null,null,""]
[null,null,null,null,null,null,null,null,"","",null,null,null,null,null,null,null,""]
[null,null,null,null,null,null,null,null,"","",null,null,null,null,null,null,null,""]
[null,null,null,null,null,null,null,null,"","",null,null,null,null,null,null,null,""]
[null,null,null,null,null,null,null,null,"","",null,null,null,null,null,null,null,""]
[null,null,null,null,null,null,null,null,"","",null,null,null,null,null,null,null,""]
[null,null,null,null,null,null,null,null,"","",null,null,null,null,null,null,null,""]
[null,null,null,null,null,null,null,null,null,{"$f":"IF(C26<>\"\",I26+10*LOG10(C26),\"\")","v":""},null,null,null,null,null,null,null,""]
[null,{"$f":"IF(N11<>\"\",\"Hintergrundgeräuschpegel\",\"\")","v":""},null,null,{"$f":"IF(N11<>\"\",N11,\"\")","v":""},null,null,null,null,null,null,null,null,null,null,null,null,{"$f":"IF(N11=\"\",0,POWER(10,0.1*N11))","v":0}]
[null,null,null,null,null,null,null,null,null,null,null,null,null,null,null,null,null,{"$f":"IF(SUM(R8:R26)>0,10*LOG10(SUM(R8:R26)/(N9*3600)+R27),\"\")","v":""},null,null,null,null,null,null,null,null,"."]
[null,null,null,{"$f":"\"Mittelungspegel für den Zeitraum von \"&TEXT(N9,0)&\" Stunden:\"","v":"Mittelungspegel für den Zeitraum von 8 Stunden:"},{"$f":"IF(R28>0,R28,\"\")","v":""}]
[null,null,null,null,null,null,null,null,"Prüfung:"]
[null,null,null,{"$f":"IF(N11=\"\",\"Bitte den Hintergrundgeräuschpegel eingeben!\",\"\")","v":"Bitte den Hintergrundgeräuschpegel eingeben!"},null,null,null,null,"N","Laeq Zeit"]
[null,null,null,null,null,null,null,null,{"$f":"IF(AND(D8<>0,C8=\"\"),1,\"\")","v":""},{"$f":"IF(AND(E8<>0,SUM(F8:H8)=0),1,\"\")","v":""}]
[null,null,null,{"$f":"IF(I50<>0,\"Bitte zu jedem Ereignis LAE die Anzahl (N) eingeben!\",IF(J50<>0,\"Bei LAeq bitte zusätzlich die Zeit angeben!\",\"\"))","v":""},null,null,null,null,{"$f":"IF(AND(D9<>0,C9=\"\"),1,\"\")","v":""},{"$f":"IF(AND(E9<>0,SUM(F9:H9)=0),1,\"\")","v":""}]
[null,null,null,null,null,null,null,null,"",""]
[null,null,null,null,null,null,null,null,"",""]
[null,null,null,null,null,null,null,null,"",""]
[null,null,null,null,null,null,null,null,"",""]
[null,null,null,null,null,null,null,null,"",""]
[null,null,null,null,null,null,null,null,"",""]
[null,null,null,null,null,null,null,null,"",""]
[null,null,null,null,null,null,null,null,"",""]
[null,null,null,null,null,null,null,null,"",""]
[null,null,null,null,null,null,null,null,"",""]
[null,null,null,null,null,null,null,null,"",""]
[null,null,null,null,null,null,null,null,"",""]
[null,null,null,null,null,null,null,null,"",""]
[null,null,null,null,null,null,null,null,"",""]
[null,null,null,null,null,null,null,null,"",""]
[null,null,null,null,null,null,null,null,"",""]
[null,null,null,null,null,null,null,null,{"$f":"SUM(I32:I49)","v":0},{"$f":"SUM(J32:J49)","v":0}]

{"sheet":"LAE Hilfe","index":6,"n_rows":33,"n_cols":6,"rows_kept":33,"cut":false,"hidden":false,"merged":[]}
[]
[null,"Bestimmung einer Lärmexposition aus Einzelereignispegeln",null,null,null,"Beispiel"]
[]
[null,"Wird die mittlere Schallenergie in einem zu beurteilenden Zeitraum durch Einzelereignisse bestimmt, lässt sich die Lärmexposition durch die Verwendung von Einzelereignispegeln bestimmen.",null,null,null,"Sie müssen an einem 8-stündigen Arbeitstag 10x den Winkelschleifer für 2 Minuten einsetzen, 3x läuft ein Kompressor je 10 Minuten und 100x müssen Sie einen Nagel einschlagen. Von den ersten beiden Ereignissen kennen Sie den Mittelungspegel für die Maschinen, für das Einschlagen eines Nagels ist der LAE bekannt."]
[null,"Mit diesem Rechner können Sie bequem die Belastung durch verschiedene Ereignisse (Lärmquelle i = 1 ... k) mit unterschiedlicher Häufigkeit ni ermitteln.",null,null,null,"Der Hintergrundgeräuschpegel beträgt hier 75 dB(A)."]
[null,null,null,null,null," Welcher Mittelungspegel ergibt sich für diese Zeit?"]
[null,"Der Einzelereignispegel LAE gibt die Schallenergie eines Ereignisses bezogen auf 1s an."]
[null,"Manche Messgeräte geben den LAE aus, er lässt sich aber auch einfach aus einer Messung des LAeq bestimmen, die das Einzelereignis einschließt."]
[]
[null,"Rechenvorschrift:"]
[]
[]
[null,"mit:"]
[null,"t = Messdauer in Sekunden"]
[]
[null,"Aus dem Einzelereignispegel und der Anzahl der Ereignisse in einem Zeitabschnitt lässt sich jetzt die mittlere Lärmbelastung für einen beliebigen Zeitraum T bestimmen."]
[]
[null,"Rechenvorschrift:"]
[]
[]
[]
[]
[]
[null,"mit:"]
[null,"LAE i = LAE für ein Ereignis der Lärmquelle i"]
[null,"ni = Anzahl der Ereignisse der Lärmquelle i im betrachteten Zeitraum"]
[null,"T = Zeitraum in Sekunden"]
[null,null,null,null,null,"Typische Zeiträume (beispielhaft):"]
[null,"In der Tabelle kann für jede Lärmquelle entweder der LAE eingegeben werden oder der LAeq und die Dauer t. Die Dauer kann in Stunden, Minuten und/oder Sekunden angegeben werden.",null,null,null,"Arbeitslärm\n- Tätigkeit"]
[null,"Wird ein LAE angegeben, so werden Angaben zu Pegel und Dauer in der gleichen Zeile ignoriert. Die Angabe der Anzahl der verschiedenen Ereignisse ist erforderlich.",null,null,null,"- Arbeitsschicht\n- Arbeitswoche"]
[null,"Die Angabe des Zeitraums ist wählbar, voreingestellt sind 8 Stunden.",null,null,null,"Umweltlärm"]
[null,"Ein Hintergrundgeräuschpegel kann eingegeben werden, er wird dann mit berücksichtigt.",null,null,null,"- Tageszeit (16 h)"]
[null,null,null,null,null,"- Nachtzeit (8 h)"]

{"sheet":"Ultraschall","index":7,"n_rows":46,"n_cols":31,"rows_kept":46,"cut":false,"hidden":false,"merged":[[10,27,11,27],[13,21,14,21],[13,22,14,22],[13,23,14,23],[1,1,1,30],[5,21,5,27],[7,21,8,21],[7,22,8,22],[7,23,8,23],[10,21,11,21],[10,22,11,22],[10,23,11,23],[10,25,11,25],[10,26,11,26]]}
[]
[null,"Exposition im Beisein von luftgeleitetem Ultraschall"]
[null,null,null,null,null,null,null,null,null,null,null,null,null,null,null,null,null,null,null,null,null,null,null,null,null,null,null,null,null,null,"zur Verfügung gestellt von Herrn Dipl.-Ing. Heiko Kusserow"]
[]
[null,null,null,null,null,null,null,null,null,null,null,null,null,null,null,null,null,null,null,null,null,"Bemerkung zur Messung:"]
[null,"Terzmitten- frequenz [Hz]","A-Bewertung","U-Bewertung","AU-Bewertung","C-Bewertung","Z-Bewertung","Ultra-Bewertung","à","Messwert\nLpZeq,Terz [dB]","à","Wertprüfung","Wert für Grafik","Z-Bewertung","A-Bewertung","A-Bewertung","AU-Bewertung","AU-Bewertung","U-Bewertung","U-Bewertung",null," "]
[null,10,-70.400000000000006,0,-70.400000000000006,-14.3,0,null,"à",0,"à",{"$f":"IF(J7<0,\"ungültiger Wert\",IF(J7>170,\"ungültiger Wert\",\"ok\"))","v":"ok"},{"$f":"IF(J7<0,0,IF(J7>170,0,J7))","v":0},{"$f":"IF(L7=\"ok\",(POWER(10,0.1*J7)),1)","v":1},{"$f":"J7+C7","v":-70.400000000000006},{"$f":"POWER(10,0.1*O7)","v":9.120108393559062E-8},{"$f":"J7+E7","v":-70.400000000000006},{"$f":"POWER(10,0.1*Q7)","v":9.120108393559062E-8},{"$f":"J7+D7","v":0},{"$f":"POWER(10,0.1*S7)","v":1}]
[null,12.5,-63.4,0,-63.4,-11.2,0,null,"à",0,"à",{"$f":"IF(J8<0,\"ungültiger Wert\",IF(J8>170,\"ungültiger Wert\",\"ok\"))","v":"ok"},{"$f":"IF(J8<0,0,IF(J8>170,0,J8))","v":0},{"$f":"IF(L8=\"ok\",(POWER(10,0.1*J8)),1)","v":1},-63.4,4.5708818961487426E-7,-63.4,4.5708818961487426E-7,0,1,null,"LZeq:",{"$f":"IF(SUM(J7:J40)>0,10*LOG(N42),0)","v":0},"dB"]
[null,16,-56.7,0,-56.7,-8.5,0,null,"à",0,"à","ok",0,1,-56.7,2.1379620895022263E-6,-56.7,2.1379620895022263E-6,0,1]
[null,20,-50.5,0,-50.5,-6.2,0,null,"à",0,"à","ok",0,1,-50.5,8.9125093813374256E-6,-50.5,8.9125093813374256E-6,0,1]
[null,25,-44.7,0,-44.7,-4.4000000000000004,0,null,"à",0,"à","ok",0,1,-44.7,3.3884415613920195E-5,-44.7,3.3884415613920195E-5,0,1,null,"LAeq:",{"$f":"IF(SUM(J7:J40)>0,10*LOG(P42),0)","v":0},"dB",null,"LAeq,Hfb:",{"$f":"IF(SUM(J9:J39)>0,10*LOG(P46),0)","v":0},"dB"]
[null,31.5,-39.4,0,-39.4,-3,0,null,"à",0,"à","ok",0,1,-39.4,1.148153621496881E-4,-39.4,1.148153621496881E-4,0,1]
[null,40,-34.6,0,-34.6,-2,0,null,"à",0,"à","ok",0,1,-34.6,3.4673685045253109E-4,-34.6,3.4673685045253109E-4,0,1,null,null,null,null,null,"Hfb: Hörfrequenzbereich (16 Hz bis 16 kHz)"]
[null,50,-30.2,0,-30.2,-1.3,0,null,"à",0,"à","ok",0,1,-30.2,9.5499258602143547E-4,-30.2,9.5499258602143547E-4,0,1,null,"LAUeq:",{"$f":"IF(SUM(J7:J40)>0,10*LOG(R42),0)","v":0},"dB"]
[null,63,-26.2,0,-26.2,-0.8,0,null,"à",0,"à","ok",0,1,-26.2,2.3988329190194886E-3,-26.2,2.3988329190194886E-3,0,1]
[null,80,-22.5,0,-22.5,-0.5,0,null,"à",0,"à","ok",0,1,-22.5,{"$f":"POWER(10,0.1*O16)","v":5.6234132519034866E-3},-22.5,{"$f":"POWER(10,0.1*Q16)","v":5.6234132519034866E-3},0,{"$f":"POWER(10,0.1*S16)","v":1}]
[null,100,-19.100000000000001,0,-19.100000000000001,-0.3,0,null,"à",0,"à","ok",0,1,-19.100000000000001,{"$f":"POWER(10,0.1*O17)","v":1.2302687708123809E-2},-19.100000000000001,{"$f":"POWER(10,0.1*Q17)","v":1.2302687708123809E-2},0,{"$f":"POWER(10,0.1*S17)","v":1}]
[null,125,-16.100000000000001,0,-16.100000000000001,-0.2,0,null,"à",0,"à","ok",0,1,-16.100000000000001,2.4547089156850277E-2,-16.100000000000001,2.4547089156850277E-2,0,1]
[null,160,-13.4,0,-13.4,-0.1,0,null,"à",0,"à","ok",0,1,-13.4,4.5708818961487478E-2,-13.4,4.5708818961487478E-2,0,1]
[null,200,-10.9,0,-10.9,0,0,null,"à",0,"à","ok",0,1,-10.9,8.1283051616409904E-2,-10.9,8.1283051616409904E-2,0,1]
[null,250,-8.6,0,-8.6,0,0,null,"à",0,"à","ok",0,1,-8.6,0.13803842646028844,-8.6,0.13803842646028844,0,1]
[null,315,-6.6,0,-6.6,0,0,null,"à",0,"à","ok",0,1,-6.6,0.21877616239495523,-6.6,0.21877616239495523,0,1]
[null,400,-4.8,0,-4.8,0,0,null,"à",0,"à","ok",0,1,-4.8,0.33113112148259105,-4.8,0.33113112148259105,0,1]
[null,500,-3.2,0,-3.2,0,0,null,"à",0,"à","ok",0,1,-3.2,0.47863009232263831,-3.2,0.47863009232263831,0,1]
[null,630,-1.9,0,-1.9,0,0,null,"à",0,"à","ok",0,1,-1.9,0.64565422903465541,-1.9,0.64565422903465541,0,1]
[null,800,-0.8,0,-0.8,0,0,null,"à",0,"à","ok",0,1,-0.8,0.83176377110267097,-0.8,0.83176377110267097,0,1]
[null,1000,0,0,0,0,0,null,"à",0,"à","ok",0,1,0,1,0,1,0,1]
[null,1250,0.6,0,0.6,0,0,null,"à",0,"à","ok",0,1,0.6,1.1481536214968828,0.6,1.1481536214968828,0,1]
[null,1600,1,0,1,-0.1,0,null,"à",0,"à","ok",0,1,1,1.2589254117941673,1,1.2589254117941673,0,1]
[null,2000,1.2,0,1.2,-0.2,0,null,"à",0,"à","ok",0,1,1.2,1.3182567385564072,1.2,1.3182567385564072,0,1]
[null,2500,1.3,0,1.3,-0.3,0,null,"à",0,"à","ok",0,1,1.3,1.3489628825916538,1.3,1.3489628825916538,0,1]
[null,3150,1.2,0,1.2,-0.5,0,null,"à",0,"à","ok",0,1,1.2,1.3182567385564072,1.2,1.3182567385564072,0,1]
[null,4000,1,0,1,-0.8,0,null,"à",0,"à","ok",0,1,1,1.2589254117941673,1,1.2589254117941673,0,1]
[null,5000,0.5,0,0.5,-1.3,0,null,"à",0,"à","ok",0,1,0.5,1.1220184543019636,0.5,1.1220184543019636,0,1]
[null,6300,-0.1,0,-0.1,-2,0,null,"à",0,"à","ok",0,1,-0.1,0.97723722095581067,-0.1,0.97723722095581067,0,1]
[null,8000,-1.1000000000000001,0,-1.1000000000000001,-3,0,-27,"à",0,"à","ok",0,1,-1.1000000000000001,0.77624711662869172,-1.1000000000000001,0.77624711662869172,0,1]
[null,10000,-2.5,0,-2.5,-4.4000000000000004,0,-11.1,"à",0,"à","ok",0,1,-2.5,0.56234132519034907,-2.5,0.56234132519034907,0,1]
[null,12500,-4.3,-2.8,-7.1,-6.2,0,-2.6,"à",0,"à","ok",0,1,-4.3,0.37153522909717251,-7.1,0.19498445997580449,-2.8,0.52480746024977254]
[null,16000,-6.6,-13,-19.600000000000001,-8.5,0,0,"à",0,"à","ok",0,1,-6.6,0.21877616239495523,-19.600000000000001,1.0964781961431842E-2,-13,5.0118723362727206E-2]
[null,20000,-9.3000000000000007,-25.3,-34.6,-11.2,0,0,"à",0,"à","ok",0,1,-9.3000000000000007,0.11748975549395291,-34.6,3.4673685045253109E-4,-25.3,2.9512092266663838E-3]
[]
[null,null,null,null,null,null,null,null,null,null,null,null,null,{"$f":"SUM(N7:N40)","v":34},{"$f":"10*LOG(P42)","v":11.935265743357064},{"$f":"SUM(P7:P40)","v":15.614445793239156},{"$f":"10*LOG(R42)","v":11.793489761175731},{"$f":"SUM(R7:R40)","v":15.112940625040766},{"$f":"10*LOG(T42)","v":14.993829341726368},{"$f":"SUM(T7:T40)","v":31.577877392839163}]
[]
[]
[]
[null,null,null,null,null,null,null,null,null,null,null,null,null,"LpAeq,Hfb:",{"$f":"10*LOG(P46)","v":11.902463856540937},{"$f":"SUM(P9:P39)","v":15.496955489455932}]